bitfinex/quotes_SOLUSD_20230116
["timestamp","ask_amount","ask_price","bid_price","bid_amount"]
[1673883065417,32.54,23.068,23.042,20.0]
[1673883065628,20.0,23.067,23.039,20.0]
[1673883066065,20.0,23.067,23.04,21.46196354]
[1673883066263,20.0,23.076,23.039,20.0]
[1673883066482,32.53,23.076,23.039,20.0]
[1673883066692,115.6254,23.077,23.039,20.0]
[1673883066693,115.6254,23.077,23.04,42.71196354]
[1673883066889,115.6254,23.077,23.041,4.05905]
[1673883067099,32.51,23.087,23.05,21.39]
[1673883067313,32.5,23.094,23.051,17.0]
[1673883067523,20.0,23.087,23.053,20.0]
[1673883067735,20.0,23.087,23.054,4.05676]
[1673883067956,32.51,23.087,23.053,20.0]
[1673883068161,32.5,23.095,23.06,21.25]
[1673883068366,32.5,23.095,23.061,17.0]
[1673883068587,20.0,23.094,23.062,20.0]
[1673883068793,20.0,23.094,23.064,20.0]
[1673883068986,115.6254,23.096,23.065,17.0]
[1673883069208,115.6254,23.096,23.066,20.0]
[1673883069520,20.0,23.095,23.067,17.0]
[1673883069945,20.0,23.095,23.068,21.46196354]
[1673883070152,20.0,23.095,23.069,17.0]
[1673883070481,20.0,23.095,23.069,38.46196354]
[1673883070904,20.0,23.095,23.069,17.0]
[1673883071108,20.0,23.095,23.067,17.0]
[1673883071434,20.0,23.095,23.07,21.46196354]
[1673883071620,20.0,23.095,23.071,17.0]
[1673883071821,20.0,23.095,23.067,17.0]
[1673883072035,21.31,23.09,23.064,20.0]
[1673883072246,20.0,23.095,23.064,20.0]
[1673883072678,20.0,23.096,23.064,20.0]
[1673883072679,20.0,23.096,23.065,21.46196354]
[1673883073087,20.0,23.095,23.065,21.46196354]
[1673883073301,0.55648301,23.104,23.07,21.25]
[1673883073510,0.55648301,23.104,23.071,4.05377]
[1673883073840,0.55648301,23.104,23.072,20.0]
[1673883074362,0.55648301,23.104,23.073,38.46196354]
[1673883074579,0.55648301,23.104,23.074,20.0]
[1673883074792,0.55648301,23.104,23.075,17.0]
[1673883075318,32.49,23.103,23.076,21.46196354]
[1673883075635,0.55648301,23.104,23.078,20.0]
[1673883075827,0.55648301,23.104,23.079,17.0]
[1673883076874,0.55648301,23.104,23.08,21.46196354]
[1673883077093,0.55648301,23.104,23.081,17.0]
[1673883077616,0.55648301,23.104,23.079,17.0]
[1673883077833,0.55648301,23.104,23.078,20.0]
[1673883078032,0.55648301,23.104,23.061,20.0]
[1673883078245,0.55648301,23.104,23.037,627.27664838]
[1673883078246,21.39,23.1,23.056,7.25153589]
[1673883078455,21.39,23.1,23.06,20.0]
[1673883078669,0.55648301,23.104,23.07,21.39]
[1673883078898,0.55648301,23.104,23.071,4.05377]
[1673883079086,0.55648301,23.104,23.071,25.51573354]
[1673883079292,0.55648301,23.104,23.072,21.46196354]
[1673883079611,0.55648301,23.104,23.074,20.0]
[1673883079819,0.55648301,23.104,23.075,4.05307]
[1673883080032,0.55648301,23.104,23.075,25.51503354]
[1673883080240,0.55648301,23.104,23.076,21.46196354]
[1673883080581,21.39,23.1,23.077,4.05272]
[1673883080792,21.38,23.09,23.05,21.39]
[1673883080993,20.0,23.089,23.05,21.39]
[1673883081309,21.46196354,23.096,23.053,24.69656621]
[1673883081499,21.46196354,23.096,23.06,21.36]
[1673883081711,32.49,23.103,23.061,4.05553]
[1673883082153,53.95196354,23.103,23.061,4.05553]
[1673883082465,20.0,23.101,23.062,20.0]
[1673883082660,20.0,23.101,23.062,4.05536]
[1673883082875,21.34,23.08,23.062,4.05536]
[1673883083080,21.34,23.08,23.031,7.95690411]
[1673883083289,110.61253534,23.079,23.032,4.06064]
[1673883083507,20.0,23.078,23.034,6.83067641]
[1673883083832,21.46196354,23.078,23.041,20.0]
[1673883084026,21.39,23.09,23.042,8.52321736]
[1673883084239,167.2666,23.089,23.043,4.0587]
[1673883084447,134.7566,23.089,23.051,20.0]
[1673883084656,21.31,23.08,23.051,4.05729]
[1673883084878,21.31,23.08,23.041,20.0]
[1673883085201,20.0,23.078,23.041,20.0]
[1673883085411,20.0,23.077,23.041,20.0]
[1673883085624,204.49196354,23.077,23.041,20.0]
[1673883085821,21.46196354,23.076,23.041,20.0]
[1673883086031,20.0,23.075,23.041,20.0]
[1673883086243,52.53,23.075,23.041,20.0]
[1673883086573,32.51,23.086,23.043,20.0]
[1673883086768,32.51,23.087,23.043,24.0587]
[1673883086982,32.51,23.085,23.044,25.52048354]
[1673883087206,32.51,23.086,23.045,21.05835]
[1673883087521,32.52,23.084,23.046,24.05817]
[1673883087730,52.51,23.085,23.047,21.058]
[1673883087939,114.7566,23.089,23.05,21.39]
[1673883088248,112.5269,23.101,23.06,21.36]
[1673883088472,20.0,23.1,23.061,41.05553]
[1673883088680,52.49,23.1,23.061,62.51749354]
[1673883089077,73.88,23.1,23.062,42.92392708]
[1673883089288,73.88,23.1,23.063,17.0]
[1673883089499,73.88,23.1,23.059,21.46196354]
[1673883089727,21.23,23.09,23.059,21.46196354]
[1673883089942,21.23,23.09,23.04,21.39]
[1673883090146,52.51,23.089,23.051,21.46196354]
[1673883090359,20.0,23.088,23.046,4.05817]
[1673883090562,21.38,23.07,23.046,3.05817]
[1673883090878,144.62996,23.087,23.04,21.32]
[1673883091079,32.52,23.079,23.046,21.46196354]
[1673883091288,20.0,23.077,23.046,21.46196354]
[1673883091705,21.31,23.07,23.037,20.0]
[1673883091921,65.28168984,23.076,23.038,21.46196354]
[1673883092130,20.0,23.075,23.04,21.39]
[1673883092340,20.0,23.075,23.041,20.0]
[1673883092754,32.53,23.074,23.041,20.0]
[1673883093176,20.0,23.076,23.041,20.0]
[1673883093177,32.53,23.075,23.041,20.0]
[1673883093399,32.53,23.073,23.042,21.24088354]
[1673883093725,32.53,23.074,23.042,21.24088354]
[1673883093914,20.0,23.076,23.043,17.0]
[1673883094129,32.53,23.075,23.043,17.0]
[1673883094344,20.0,23.074,23.043,38.46196354]
[1673883094659,21.21,23.07,23.037,20.0]
[1673883095085,49.54,23.069,23.037,20.0]
[1673883095293,32.54,23.069,23.037,20.0]
[1673883095690,20.0,23.068,23.037,20.0]
[1673883096131,21.21,23.07,23.037,20.0]
[1673883096344,32.53,23.073,23.038,38.46196354]
[1673883096761,32.53,23.073,23.039,21.46196354]
[1673883096967,32.53,23.073,23.04,17.0]
[1673883097168,32.53,23.073,23.041,20.0]
[1673883097379,32.53,23.073,23.042,17.0]
[1673883097585,32.53,23.073,23.042,38.46196354]
[1673883097816,32.53,23.076,23.043,21.46196354]
[1673883098003,32.53,23.076,23.044,17.0]
[1673883098214,32.53,23.077,23.045,20.0]
[1673883098424,32.52,23.082,23.046,17.0]
[1673883098640,32.52,23.082,23.046,38.46196354]
[1673883098845,21.38,23.08,23.045,20.0]
[1673883099079,20.0,23.078,23.047,21.46196354]
[1673883099386,20.0,23.078,23.041,20.0]
[1673883099608,32.53,23.077,23.042,21.46196354]
[1673883099793,21.21,23.07,23.042,21.46196354]
[1673883100004,21.21,23.07,23.023,124.00144572]
[1673883100216,20.0,23.068,23.033,21.46196354]
[1673883100424,37.0,23.067,23.033,21.46196354]
[1673883100646,20.0,23.066,23.033,21.46196354]
[1673883100857,20.0,23.065,23.033,21.46196354]
[1673883101051,52.54,23.065,23.023,116.9139]
[1673883101264,20.0,23.059,23.029,41.46196354]
[1673883101491,20.0,23.059,23.029,21.46196354]
[1673883101700,52.55,23.058,23.03,21.46196354]
[1673883102023,20.0,23.057,23.03,21.46196354]
[1673883102639,20.0,23.059,23.03,21.46196354]
[1673883103077,32.55,23.062,23.03,21.46196354]
[1673883103267,52.54,23.068,23.031,24.06081]
[1673883103479,52.53,23.074,23.031,24.06081]
[1673883103692,52.53,23.074,23.032,42.52260354]
[1673883103902,20.0,23.068,23.033,20.0]
[1673883104223,20.0,23.067,23.032,4.06064]
[1673883104546,52.54,23.067,23.034,21.46196354]
[1673883104741,52.54,23.067,23.021,20.0]
[1673883104955,52.54,23.067,23.025,21.46196354]
[1673883105160,20.0,23.059,23.021,20.0]
[1673883105370,20.0,23.059,23.017,6.5018907]
[1673883105371,21.34,23.05,23.022,0.9643367]
[1673883105916,21.34,23.04,23.022,0.9643367]
[1673883106237,20.0,23.038,23.022,0.9643367]
[1673883106639,69.58,23.037,23.022,0.9643367]
[1673883107057,20.0,23.036,23.022,0.9643367]
[1673883107261,37.0,23.035,23.022,0.9643367]
[1673883107473,52.58,23.035,23.022,0.9643367]
[1673883107692,21.39,23.03,23.022,0.0043367]
[1673883107909,17.0,23.029,23.022,0.0043367]
[1673883108125,130.5,23.028,22.971,73.67127973]
[1673883108328,130.5,23.028,22.974,73.69852908]
[1673883108329,85.56,23.02,22.974,73.69852908]
[1673883108646,21.25,23.02,22.975,11.17250127]
[1673883108838,52.61,23.019,22.975,25.53267354]
[1673883109049,20.0,23.018,22.977,20.0]
[1673883109252,20.0,23.017,22.978,4.07018]
[1673883109481,32.61,23.019,22.98,20.0]
[1673883109813,32.6,23.026,22.981,4.06965]
[1673883110000,20.0,23.035,22.981,21.46196354]
[1673883110001,32.61,23.018,22.981,21.46196354]
[1673883110342,20.0,23.035,22.982,38.46196354]
[1673883110343,45.50152419,23.033,22.982,38.46196354]
[1673883110648,20.0,23.035,22.99,21.39]
[1673883110848,32.59,23.034,22.991,21.06788]
[1673883111057,20.0,23.035,22.992,24.0677]
[1673883111267,20.0,23.035,22.993,21.06753]
[1673883111495,20.0,23.035,22.994,4.06735]
[1673883111808,20.0,23.035,22.994,25.52931354]
[1673883112004,32.59,23.034,22.996,20.0]
[1673883112207,32.57,23.047,23.01,21.39]
[1673883112428,52.57,23.048,23.012,20.0]
[1673883112754,20.0,23.048,23.013,17.0]
[1673883112973,32.57,23.047,23.013,17.0]
[1673883113150,52.57,23.048,23.014,20.0]
[1673883113360,20.0,23.048,23.015,17.0]
[1673883113575,146.871,23.057,23.015,38.46196354]
[1673883113785,146.871,23.057,23.016,21.46196354]
[1673883113996,20.0,23.056,23.018,20.0]
[1673883114316,20.0,23.056,23.019,17.0]
[1673883114529,20.0,23.054,23.02,20.0]
[1673883114745,20.0,23.054,23.021,17.0]
[1673883114957,20.0,23.052,23.021,38.46196354]
[1673883115273,20.0,23.051,23.001,7.67447865]
[1673883115488,20.0,23.049,23.015,20.46196354]
[1673883115702,17.0,23.048,23.015,20.46196354]
[1673883115916,69.57,23.048,23.015,20.46196354]
[1673883116127,20.0,23.047,23.015,20.46196354]
[1673883116437,20.0,23.047,23.003,20.0]
[1673883116438,21.21,23.04,23.003,20.0]
[1673883116635,17.0,23.039,23.001,20.0]
[1673883116850,20.0,23.037,23.004,21.46196354]
[1673883117176,37.0,23.036,23.001,20.0]
[1673883117363,69.58,23.036,23.002,21.46196354]
[1673883117573,21.19,23.03,23.002,21.46196354]
[1673883117782,69.58,23.036,23.002,21.46196354]
[1673883117783,20.0,23.035,23.002,21.46196354]
[1673883117998,40.0,23.035,23.002,21.46196354]
[1673883118221,20.0,23.035,23.002,21.46196354]
[1673883118430,20.0,23.035,23.002,25.52789354]
[1673883118657,32.59,23.034,22.991,20.0]
[1673883118838,32.59,23.034,22.994,21.46196354]
[1673883119050,20.0,23.034,22.997,21.46196354]
[1673883119254,32.59,23.033,22.998,4.06664]
[1673883119464,119.7022,23.039,23.0,28.92684874]
[1673883119676,119.7022,23.039,23.0,21.39]
[1673883119885,20.0,23.038,23.001,41.46196354]
[1673883120094,72.58,23.038,23.001,20.0]
[1673883120308,20.0,23.037,22.998,4.06664]
[1673883120514,20.0,23.036,22.998,21.46196354]
[1673883120729,52.58,23.036,22.998,21.46196354]
[1673883120943,20.0,23.034,22.999,20.0]
[1673883121155,52.58,23.036,22.999,20.0]
[1673883121363,52.58,23.036,23.0,25.45629]
[1673883121574,52.58,23.036,23.002,20.0]
[1673883121792,20.0,23.035,23.002,20.0]
[1673883122006,20.0,23.034,23.002,20.0]
[1673883122330,21.19,23.03,23.001,4.06611]
[1673883122520,20.0,23.028,23.001,4.06611]
[1673883122737,20.0,23.027,22.984,112.1655]
[1673883123058,20.0,23.026,22.998,21.46196354]
[1673883123254,20.0,23.025,22.998,21.46196354]
[1673883123900,20.0,23.025,22.999,17.0]
[1673883124515,17.0,23.024,22.991,21.46196354]
[1673883124734,20.0,23.023,22.991,21.46196354]
[1673883125160,20.0,23.023,22.987,20.0]
[1673883125375,49.6,23.022,22.988,21.46196354]
[1673883125601,21.21,23.02,22.982,20.0]
[1673883125894,20.0,23.018,22.985,21.46196354]
[1673883126114,17.0,23.017,22.985,21.46196354]
[1673883126323,20.0,23.018,22.985,21.46196354]
[1673883126510,32.61,23.017,22.985,25.53090354]
[1673883126720,32.61,23.017,22.986,20.0]
[1673883126936,20.0,23.018,22.986,19.5]
[1673883127142,20.0,23.018,22.986,40.96196354]
[1673883127369,20.0,23.018,22.988,20.0]
[1673883127582,52.61,23.017,22.981,20.0]
[1673883127768,21.39,23.01,22.96,21.39]
[1673883127978,20.0,23.009,22.978,21.46196354]
[1673883128199,32.62,23.009,22.978,21.46196354]
[1673883128412,32.61,23.016,22.978,21.46196354]
[1673883128623,37.0,23.015,22.963,20.0]
[1673883128945,37.0,23.015,22.974,21.46196354]
[1673883128946,20.0,23.009,22.974,21.46196354]
[1673883129158,20.0,23.008,22.974,21.46196354]
[1673883129350,21.34,23.0,22.963,20.0]
[1673883129561,21.34,23.0,22.972,21.46196354]
[1673883129872,20.0,22.998,22.972,21.46196354]
[1673883130090,21.34,23.0,22.964,4.49154759]
[1673883130303,20.0,23.005,22.965,4.07249]
[1673883130928,21.21,23.0,22.965,4.07249]
[1673883131134,21.21,23.0,22.966,21.46196354]
[1673883131456,32.64,22.999,22.966,21.46196354]
[1673883131670,32.64,22.999,22.961,20.0]
[1673883131880,20.0,22.997,22.962,21.46196354]
[1673883132200,21.39,22.99,22.948,20.0]
[1673883132418,17.0,22.989,22.953,21.46196354]
[1673883132611,49.65,22.989,22.953,21.46196354]
[1673883132820,20.0,22.988,22.954,20.0]
[1673883133252,32.65,22.989,22.955,32.57802779]
[1673883133454,32.64,22.995,22.956,21.07408]
[1673883133770,32.64,22.995,22.961,20.0]
[1673883133986,32.63,23.002,22.962,21.07302]
[1673883134182,32.63,23.002,22.962,4.07302]
[1673883134398,21.39,23.0,22.963,21.46196354]
[1673883134605,20.0,22.999,22.963,21.46196354]
[1673883134826,20.0,22.998,22.963,21.46196354]
[1673883135025,20.0,22.998,22.961,20.0]
[1673883135254,32.64,22.997,22.961,21.46196354]
[1673883135449,17.0,22.996,22.961,21.46196354]
[1673883135781,20.0,22.995,22.961,21.46196354]
[1673883135974,17.0,22.994,22.961,21.46196354]
[1673883136188,52.64,22.995,22.961,21.46196354]
[1673883136399,32.64,22.993,22.961,21.46196354]
[1673883136609,32.64,22.994,22.961,21.46196354]
[1673883136817,21.21,22.99,22.951,20.0]
[1673883137032,21.21,22.99,22.955,21.46196354]
[1673883137241,32.65,22.989,22.955,21.46196354]
[1673883137564,20.0,22.987,22.955,21.46196354]
[1673883137879,20.0,22.985,22.952,21.46196354]
[1673883138092,21.21,22.99,22.953,4.07461]
[1673883138301,20.0,22.991,22.954,20.0]
[1673883138514,52.64,22.996,22.955,4.07426]
[1673883138702,32.63,23.002,22.96,21.39]
[1673883138910,32.63,23.004,22.961,41.07319]
[1673883139125,32.63,23.004,22.962,4.07302]
[1673883139350,32.63,23.002,22.962,25.53498354]
[1673883139666,32.63,23.002,22.964,26.50911785]
[1673883139873,118.6501,23.007,22.965,26.62231326]
[1673883140090,32.63,23.005,22.966,11.98740619]
[1673883140277,32.63,23.006,22.967,21.07213]
[1673883140490,20.0,23.005,22.968,4.07195]
[1673883140695,20.0,23.005,22.969,20.0]
[1673883140911,20.0,23.005,22.97,21.0716]
[1673883141135,32.63,23.006,22.97,42.53356354]
[1673883141339,118.6501,23.007,22.971,25.53338354]
[1673883141541,118.6501,23.007,22.972,41.07124]
[1673883141753,118.6501,23.007,22.973,4.07107]
[1673883141963,118.6501,23.007,22.973,25.53303354]
[1673883142173,118.6501,23.007,22.974,38.46196354]
[1673883142489,32.61,23.014,23.005,200.0]
[1673883142705,32.61,23.017,23.005,200.0]
[1673883142914,32.62,23.013,23.005,200.0]
[1673883143125,32.61,23.016,23.005,200.0]
[1673883143323,32.62,23.012,23.005,200.0]
[1673883143662,32.61,23.015,23.005,200.0]
[1673883143860,32.62,23.011,23.005,200.0]
[1673883144069,17.0,23.01,23.005,200.0]
[1673883144396,17.0,23.014,23.005,200.0]
[1673883144607,32.62,23.009,23.005,200.0]
[1673883144804,21.46196354,23.014,22.973,20.0]
[1673883145134,21.46196354,23.014,22.967,20.0]
[1673883145135,21.23,23.0,22.971,62.92392708]
[1673883145325,21.23,23.0,22.971,41.46196354]
[1673883145542,32.64,22.999,22.971,41.46196354]
[1673883145875,32.63,23.006,22.971,41.46196354]
[1673883146067,32.62,23.008,22.971,45.53338354]
[1673883146398,114.0116,23.01,22.972,21.07124]
[1673883146602,114.0116,23.01,22.974,20.0]
[1673883146809,52.62,23.009,22.975,17.0]
[1673883147026,20.0,23.009,22.975,59.92392708]
[1673883147339,32.62,23.008,22.974,20.0]
[1673883147561,20.0,23.007,22.974,20.0]
[1673883147954,32.63,23.006,22.974,20.0]
[1673883148172,20.0,23.004,22.965,20.0]
[1673883148395,17.0,23.003,22.975,21.46196354]
[1673883148714,20.0,22.999,22.965,20.0]
[1673883148927,20.0,22.999,22.968,21.46196354]
[1673883149649,20.0,22.999,22.969,20.0]
[1673883149871,20.0,23.001,22.969,20.0]
[1673883150179,20.0,23.001,22.97,21.46196354]
[1673883150393,20.0,23.001,22.972,20.0]
[1673883150596,20.0,23.001,22.973,17.0]
[1673883150814,20.0,23.001,22.973,38.46196354]
[1673883151124,20.0,23.001,22.974,42.92392708]
[1673883151338,20.0,23.001,22.969,20.0]
[1673883151547,32.63,23.0,22.974,21.46196354]
[1673883151764,20.0,22.999,22.974,21.46196354]
[1673883152705,21.19,23.01,22.975,17.0]
[1673883153033,21.39,23.01,22.976,20.0]
[1673883153217,21.39,23.01,22.976,41.46196354]
[1673883153433,52.62,23.009,22.976,41.46196354]
[1673883153640,20.0,23.009,22.977,21.46196354]
[1673883154053,21.39,23.01,22.977,21.46196354]
[1673883154267,52.62,23.012,22.978,20.0]
[1673883154470,20.0,23.012,22.979,17.0]
[1673883154685,20.0,23.012,22.98,20.0]
[1673883154895,20.0,23.012,22.981,17.0]
[1673883155118,20.0,23.012,22.981,38.46196354]
[1673883155540,20.0,23.012,22.983,20.0]
[1673883155735,20.0,23.021,22.984,17.0]
[1673883155947,149.7399,23.034,22.99,21.39]
[1673883156166,117.1499,23.034,22.991,21.06788]
[1673883156366,32.59,23.033,22.992,4.0677]
[1673883156580,20.0,23.032,22.993,20.0]
[1673883156790,20.0,23.032,22.994,17.0]
[1673883157010,20.0,23.032,22.994,38.46196354]
[1673883157213,20.0,23.03,22.994,38.46196354]
[1673883157424,20.0,23.03,22.995,21.46196354]
[1673883157748,20.0,23.03,22.996,37.0]
[1673883158068,32.59,23.031,22.997,25.52878354]
[1673883158259,20.0,23.033,22.999,20.0]
[1673883158468,52.59,23.033,23.001,20.0]
[1673883158896,52.59,23.033,23.002,17.0]
[1673883159115,52.59,23.033,23.002,59.92392708]
[1673883159329,52.59,23.033,23.003,21.46196354]
[1673883159558,117.1499,23.034,23.005,20.0]
[1673883159755,114.5491,23.036,23.005,20.0]
[1673883160087,32.57,23.046,23.01,21.39]
[1673883160300,20.0,23.045,23.01,21.39]
[1673883160486,20.0,23.044,23.012,20.0]
[1673883160821,52.57,23.044,23.013,38.46196354]
[1673883161015,21.31,23.04,23.013,21.46196354]
[1673883161226,20.0,23.039,22.99,21.39]
[1673883161435,20.0,23.038,22.991,20.0]
[1673883161756,20.0,23.037,22.991,20.0]
[1673883161964,74.04196354,23.037,22.991,20.0]
[1673883162176,21.46196354,23.036,22.991,20.0]
[1673883162392,20.0,23.034,22.991,20.0]
[1673883162808,71.05196354,23.033,22.991,20.0]
[1673883163023,20.0,23.032,22.991,20.0]
[1673883163329,38.46196354,23.031,22.991,20.0]
[1673883163536,20.0,23.03,22.991,20.0]
[1673883163745,62.65196354,23.03,22.988,20.0]
[1673883163959,161.375,23.029,22.988,20.0]
[1673883164289,141.375,23.029,22.988,20.0]
[1673883164502,20.0,23.028,22.988,20.0]
[1673883164688,20.0,23.028,22.988,19.5]
[1673883164894,20.0,23.026,22.988,19.5]
[1673883165108,20.0,23.025,22.988,19.5]
[1673883165426,74.06196354,23.025,22.988,19.5]
[1673883165631,52.6,23.025,22.988,23.56841]
[1673883166052,20.0,23.025,22.989,4.06823]
[1673883166265,20.0,23.024,22.99,20.0]
[1673883166499,20.0,23.024,22.991,17.0]
[1673883166804,32.6,23.023,22.99,20.0]
[1673883167649,32.6,23.024,22.99,20.0]
[1673883167857,20.0,23.023,22.99,24.06806]
[1673883168488,32.6,23.022,22.99,4.06806]
[1673883169106,52.6,23.023,22.99,4.06806]
[1673883169312,32.6,23.023,22.99,4.06806]
[1673883169545,52.6,23.024,22.99,4.06806]
[1673883169727,20.0,23.024,22.991,10.33375763]
[1673883169944,20.0,23.026,22.992,21.0677]
[1673883170153,52.59,23.028,23.0,21.39]
[1673883170364,52.59,23.028,23.001,17.0]
[1673883170365,20.0,23.028,23.001,17.0]
[1673883171014,128.785,23.029,23.001,17.0]
[1673883171204,32.59,23.033,23.001,17.0]
[1673883171417,32.59,23.034,23.002,20.0]
[1673883171636,145.9464,23.037,23.003,21.06576]
[1673883171856,113.3664,23.037,23.003,21.06576]
[1673883172465,113.3664,23.037,23.004,20.0]
[1673883172676,113.3664,23.037,23.005,4.0654]
[1673883172881,113.3664,23.037,23.006,20.0]
[1673883173198,20.0,23.036,23.004,20.0]
[1673883173421,20.0,23.036,23.002,20.0]
[1673883175194,32.58,23.039,23.003,4.85076292]
[1673883175410,586.7,23.059,23.003,4.85076292]
[1673883175411,32.57,23.042,23.02,21.39]
[1673883175622,149.477,23.057,23.02,21.39]
[1673883175938,149.477,23.057,23.021,17.0]
[1673883176146,20.0,23.056,23.022,20.0]
[1673883176362,20.0,23.056,23.024,20.0]
[1673883176561,149.477,23.057,23.025,17.0]
[1673883176773,21.97996252,23.089,23.025,17.0]
[1673883176774,32.56,23.055,23.03,21.32]
[1673883176993,149.467,23.069,23.031,21.06081]
[1673883177204,116.927,23.069,23.032,4.06064]
[1673883177433,52.54,23.068,23.033,20.0]
[1673883177738,52.54,23.068,23.034,17.0]
[1673883177956,41.46196354,23.067,23.032,20.0]
[1673883178143,41.46196354,23.067,23.033,17.0]
[1673883178362,20.0,23.065,23.034,20.0]
[1673883178571,20.0,23.065,23.035,17.0]
[1673883178802,32.54,23.064,23.035,17.0]
[1673883178989,20.0,23.063,23.035,17.0]
[1673883179413,20.0,23.063,23.036,20.0]
[1673883179623,20.0,23.063,23.037,17.0]
[1673883180059,32.54,23.066,23.037,17.0]
[1673883180270,32.54,23.067,23.039,20.0]
[1673883180581,20.0,23.068,23.04,17.0]
[1673883181114,21.46196354,23.067,23.04,17.0]
[1673883181302,20.0,23.066,23.04,17.0]
[1673883181846,32.54,23.065,23.04,17.0]
[1673883182057,52.53,23.073,23.041,4.05905]
[1673883182268,20.0,23.073,23.042,20.0]
[1673883182454,20.0,23.073,23.043,17.0]
[1673883182672,53.99196354,23.072,23.04,17.0]
[1673883182881,53.99196354,23.072,23.032,20.0]
[1673883183092,21.19,23.07,23.024,38.16]
[1673883183314,40.0,23.069,23.024,20.0]
[1673883183519,123.25912254,23.069,23.02,21.39]
[1673883183732,20.0,23.067,23.02,21.39]
[1673883184039,38.46196354,23.066,23.02,21.39]
[1673883184366,40.0,23.065,23.031,20.0]
[1673883184784,32.54,23.064,23.031,20.0]
[1673883185201,32.54,23.066,23.032,18.38064]
[1673883185400,32.54,23.068,23.033,21.06046]
[1673883185609,20.0,23.069,23.034,8.14331746]
[1673883185852,32.54,23.068,23.035,21.06011]
[1673883186058,32.54,23.068,23.036,24.05993]
[1673883186370,20.0,23.069,23.038,20.0]
[1673883186552,20.0,23.069,23.04,20.0]
[1673883187103,20.0,23.069,23.041,17.0]
[1673883187313,32.54,23.07,23.041,17.0]
[1673883187518,32.53,23.077,23.041,17.0]
[1673883187734,32.53,23.077,23.042,21.46196354]
[1673883187923,32.53,23.074,23.042,21.46196354]
[1673883188138,53.99196354,23.074,23.042,21.46196354]
[1673883188469,20.0,23.073,23.043,37.0]
[1673883188887,20.0,23.071,23.044,41.46196354]
[1673883189092,20.0,23.071,23.045,17.0]
[1673883189303,32.54,23.07,23.045,17.0]
[1673883189500,32.54,23.07,23.045,38.46196354]
[1673883189713,32.54,23.07,23.046,21.46196354]
[1673883189934,32.54,23.07,23.04,20.0]
[1673883190250,20.0,23.069,23.038,41.46196354]
[1673883190470,20.0,23.069,23.027,20.0]
[1673883190656,49.54,23.068,23.033,21.46196354]
[1673883190862,91.00196354,23.068,23.033,21.46196354]
[1673883191196,20.0,23.066,23.027,20.0]